bitfinex/quotes_SOLUSD_20230110
["timestamp","ask_amount","ask_price","bid_price","bid_amount"]
[1673339695204,2.52526901,16.133,16.124,20.0]
[1673339695941,1.92,16.132,16.122,20.0]
[1673339697627,2.52526901,16.131,16.122,20.0]
[1673339697812,1.92,16.13,16.122,20.0]
[1673339698884,27.93,16.13,16.121,2.5000536]
[1673339699078,39.52526901,16.129,16.121,2.5000536]
[1673339699293,1.92,16.128,16.121,2.5000536]
[1673339699619,22.52526901,16.127,16.121,2.5000536]
[1673339699831,2.52526901,16.125,16.121,2.5000536]
[1673339700051,1.92,16.124,16.121,2.5000536]
[1673339700369,2.52526901,16.123,16.121,2.5000536]
[1673339700788,4.44526901,16.122,16.121,2.5000536]
[1673339701110,1.92,16.122,16.121,2.5000536]
[1673339701420,4.44526901,16.122,16.121,2.5000536]
[1673339701737,20.0,16.121,16.113,20.0]
[1673339702055,1.92,16.12,16.112,108.9335]
[1673339702250,1.92,16.12,16.108,20.0]
[1673339702461,1.92,16.12,16.109,20.0]
[1673339703206,1.92,16.12,16.108,20.0]
[1673339703426,1.92,16.12,16.109,20.0]
[1673339703732,2.52526901,16.124,16.11,20.0]
[1673339704370,2.52526901,16.126,16.11,20.0]
[1673339704977,2.52526901,16.124,16.11,20.0]
[1673339705186,1.92,16.123,16.11,20.0]
[1673339705414,2.52526901,16.124,16.11,20.0]
[1673339705609,1.92,16.123,16.11,20.0]
[1673339705826,3.48526901,16.122,16.108,20.0]
[1673339706030,0.96,16.121,16.108,20.0]
[1673339707602,2.52526901,16.125,16.109,20.0]
[1673339707807,2.52526901,16.125,16.109,37.28380503]
[1673339708022,2.52526901,16.125,16.11,20.0]
[1673339708233,2.52526901,16.125,16.11,37.28380503]
[1673339708461,2.52526901,16.125,16.11,20.0]
[1673339708782,0.96,16.124,16.109,20.0]
[1673339708998,2.52526901,16.123,16.109,20.0]
[1673339709296,4.44526901,16.122,16.109,20.0]
[1673339709511,43.44588582,16.122,16.092,113.545]
[1673339709715,20.0,16.12,16.101,111.1062]
[1673339709930,1.92,16.119,16.103,156.58690503]
[1673339710124,1.92,16.119,16.104,37.28380503]
[1673339712856,18.92,16.119,16.104,37.28380503]
[1673339713066,18.92,16.119,16.104,20.0]
[1673339713508,20.0,16.118,16.104,20.0]
[1673339713725,18.92,16.117,16.104,20.0]
[1673339714668,18.92,16.117,16.101,20.0]
[1673339715402,20.0,16.116,16.099,115.2283]
[1673339715610,1.92,16.115,16.099,115.2283]
[1673339715798,20.0,16.114,16.094,1.614]
[1673339716006,26.11,16.11,16.095,20.0]
[1673339716220,131.03,16.12,16.095,20.0]
[1673339716434,40.96710854,16.118,16.1,26.14]
[1673339716653,137.7307,16.129,16.101,21.613]
[1673339716976,324.3307,16.129,16.101,38.89680503]
[1673339717172,46.52,16.127,16.101,21.613]
[1673339717383,20.0,16.126,16.101,21.613]
[1673339717711,66.53,16.125,16.102,17.28380503]
[1673339717917,20.0,16.124,16.102,17.28380503]
[1673339718133,20.0,16.123,16.103,20.0]
[1673339718450,20.0,16.123,16.104,17.28380503]
[1673339718632,20.0,16.122,16.104,17.28380503]
[1673339719478,18.92,16.121,16.104,17.28380503]
[1673339719904,20.0,16.123,16.105,0.96]
[1673339720119,20.0,16.124,16.106,0.96]
[1673339720334,20.0,16.125,16.106,18.24380503]
[1673339720546,20.0,16.125,16.107,17.28380503]
[1673339721069,20.0,16.124,16.107,17.28380503]
[1673339721472,20.0,16.125,16.107,17.28380503]
[1673339721687,20.0,16.125,16.108,0.96]
[1673339721910,20.0,16.124,16.108,0.96]
[1673339722107,20.0,16.124,16.109,17.28380503]
[1673339722964,18.92,16.123,16.109,17.28380503]
[1673339723288,20.0,16.122,16.109,17.28380503]
[1673339723592,1.92,16.121,16.109,17.28380503]
[1673339724329,1.92,16.121,16.105,20.0]
[1673339724643,1.92,16.121,16.106,17.28380503]
[1673339725785,18.92,16.121,16.105,20.0]
[1673339726117,20.0,16.119,16.105,20.0]
[1673339726316,1.92,16.118,16.104,108.0342]
[1673339726740,1.92,16.118,16.104,125.31800503]
[1673339726949,1.92,16.118,16.105,20.0]
[1673339727163,1.92,16.118,16.104,125.31800503]
[1673339728321,20.92061681,16.118,16.098,1.6]
[1673339728531,20.92061681,16.118,16.094,118.7289]
[1673339728532,46.55,16.117,16.094,118.7289]
[1673339728850,20.0,16.115,16.095,20.0]
[1673339729058,20.0,16.113,16.094,117.1279]
[1673339729266,0.96,16.112,16.094,117.1279]
[1673339729481,20.0,16.111,16.095,20.0]
[1673339729675,21.92,16.11,16.094,117.1279]
[1673339730004,21.92,16.11,16.095,20.0]
[1673339730200,21.92,16.11,16.094,134.41170503]
[1673339730625,21.92,16.11,16.094,117.1279]
[1673339730834,20.0,16.109,16.094,117.1279]
[1673339731369,1.92,16.108,16.094,117.1279]
[1673339732527,1.92,16.108,16.095,37.28380503]
[1673339733156,1.92,16.108,16.095,17.28380503]
[1673339733683,1.92,16.108,16.096,20.0]
[1673339734315,1.92,16.108,16.095,37.28380503]
[1673339734835,1.92,16.108,16.095,17.28380503]
[1673339735558,1.92,16.108,16.094,117.1279]
[1673339738389,18.92,16.108,16.094,117.1279]
[1673339738603,20.0,16.107,16.094,117.1279]
[1673339738823,1.92,16.106,16.094,117.1279]
[1673339739456,18.92,16.106,16.09,26.26]
[1673339739658,1.92,16.106,16.091,109.3386]
[1673339739869,20.0,16.105,16.091,109.3386]
[1673339740093,38.92,16.104,16.087,1.846]
[1673339740292,46.59,16.103,16.085,109.3386]
[1673339740504,20.0,16.102,16.086,20.0]
[1673339740717,38.92,16.101,16.086,20.0]
[1673339740926,20.0,16.1,16.086,20.0]
[1673339741246,21.92,16.099,16.086,20.0]
[1673339742087,21.92,16.099,16.082,1.847]
[1673339742301,21.92,16.099,16.07,130.8]
[1673339742302,26.01,16.09,16.076,120.5784]
[1673339742612,26.01,16.09,16.077,20.0]
[1673339743231,0.96,16.089,16.077,20.0]
[1673339743647,46.61,16.096,16.077,20.0]
[1673339743981,1.92,16.095,16.078,2.052]
[1673339744173,0.96,16.095,16.079,20.0]
[1673339744388,20.96,16.095,16.08,20.0]
[1673339744599,20.0,16.093,16.08,20.0]
[1673339744915,20.0,16.089,16.077,20.0]
[1673339745126,25.95,16.09,16.077,20.0]
[1673339745347,38.92,16.089,16.077,20.0]
[1673339746406,57.92061681,16.089,16.073,5.6191536]
[1673339746612,66.63,16.088,16.073,5.6191536]
[1673339746798,0.96,16.087,16.073,5.6191536]
[1673339747013,37.92061681,16.087,16.073,5.6191536]
[1673339747341,65.64061681,16.086,16.073,5.6191536]
[1673339747538,20.0,16.084,16.073,5.6191536]
[1673339747762,0.96,16.083,16.073,5.6191536]
[1673339748074,18.92,16.083,16.073,5.6191536]
[1673339748605,1.92,16.083,16.073,5.6191536]
[1673339751550,46.63,16.088,16.073,22.90295863]
[1673339751866,66.63,16.089,16.073,5.6191536]
[1673339752585,85.63061681,16.089,16.073,5.6191536]
[1673339752806,85.63061681,16.089,16.074,17.0]
[1673339753059,131.08,16.1,16.074,17.0]
[1673339753360,20.0,16.099,16.081,20.0]
[1673339753580,20.0,16.098,16.083,20.0]
[1673339754108,20.0,16.098,16.076,17.8117049]
[1673339754109,20.0,16.097,16.076,17.8117049]
[1673339754326,20.0,16.089,16.07,123.2805198]
[1673339754634,46.63,16.088,16.076,17.8117049]
[1673339754836,46.63,16.089,16.07,20.0]
[1673339755045,26.0,16.09,16.074,17.8117049]
[1673339755263,37.0,16.089,16.07,22.065]
[1673339755464,46.63,16.088,16.07,22.065]
[1673339755674,18.92,16.087,16.071,37.8117049]
[1673339755880,1.92,16.087,16.073,23.34606406]
[1673339756091,1.92,16.087,16.074,20.0]
[1673339757475,1.92,16.087,16.074,37.72691046]
[1673339758623,26.19,16.11,16.081,20.0]
[1673339758844,143.2291,16.11,16.09,26.14]
[1673339759156,20.0,16.109,16.091,23.317]
[1673339759366,46.58,16.108,16.092,17.0]
[1673339759570,66.57,16.109,16.093,20.0]
[1673339759767,46.57,16.109,16.094,0.96]
[1673339759978,20.0,16.116,16.094,1.92]
[1673339760296,46.56,16.115,16.095,19.62091046]
[1673339760499,46.56,16.115,16.097,20.0]
[1673339760710,164.0606,16.119,16.096,70.79566037]
[1673339760922,20.0,16.118,16.098,37.72691046]
[1673339761137,46.55,16.117,16.098,17.72691046]
[1673339761360,46.55,16.117,16.099,17.72691046]
[1673339761577,20.0,16.116,16.099,17.72691046]
[1673339761764,46.56,16.115,16.099,17.72691046]
[1673339762091,20.0,16.113,16.099,17.72691046]
[1673339762414,25.95,16.11,16.094,1.894]
[1673339762604,67.53,16.109,16.091,17.72691046]
[1673339762811,85.49,16.109,16.091,17.72691046]
[1673339763029,20.0,16.108,16.094,17.72691046]
[1673339763248,63.58,16.107,16.085,1.855]
[1673339763561,0.96,16.106,16.086,37.72691046]
[1673339763781,0.96,16.106,16.088,20.0]
[1673339763989,0.96,16.106,16.091,20.0]
[1673339764201,0.96,16.106,16.092,1.854]
[1673339764727,20.0,16.109,16.093,21.92]
[1673339764930,20.0,16.111,16.094,18.854]
[1673339765144,20.0,16.112,16.095,1.92]
[1673339765459,20.0,16.111,16.095,19.64691046]
[1673339765674,20.0,16.111,16.096,17.72691046]
[1673339765869,1.92,16.11,16.097,17.0]
[1673339766198,1.92,16.11,16.097,17.72691046]
[1673339766409,66.57,16.109,16.086,1.853]
[1673339766619,85.57061681,16.109,16.084,140.31]
[1673339766818,38.92,16.108,16.084,140.31]
[1673339767036,20.0,16.106,16.084,138.457]
[1673339767243,85.51,16.105,16.084,138.457]
[1673339767458,20.0,16.104,16.084,138.457]
[1673339767781,85.51,16.103,16.084,138.457]
[1673339767969,104.51061681,16.103,16.084,138.457]
[1673339768188,20.0,16.102,16.085,17.0]
[1673339768516,38.92,16.101,16.085,17.0]
[1673339769128,26.33,16.1,16.085,17.0]
[1673339769455,20.96,16.099,16.086,0.96]
[1673339769651,20.96,16.099,16.085,17.0]
[1673339769862,20.96,16.099,16.086,21.92]
[1673339770074,20.96,16.099,16.088,20.0]
[1673339770492,0.96,16.099,16.088,20.0]
[1673339770703,0.96,16.1,16.089,17.0]
[1673339770913,0.96,16.099,16.089,17.0]
[1673339771122,0.96,16.099,16.088,20.0]
[1673339771344,20.96,16.099,16.088,20.0]
[1673339771561,0.96,16.098,16.088,20.0]
[1673339771759,0.96,16.097,16.088,20.0]
[1673339771966,46.58,16.107,16.089,17.0]
[1673339772299,140.8155,16.11,16.091,20.0]
[1673339772300,46.58,16.108,16.091,20.0]
[1673339772487,19.00061681,16.106,16.091,20.0]
[1673339773641,19.00061681,16.106,16.092,17.0]
[1673339774400,20.0,16.107,16.092,17.0]
[1673339776087,1.92,16.106,16.092,17.0]
[1673339776413,20.92061681,16.106,16.09,26.11]
[1673339776917,37.0,16.105,16.09,26.11]
[1673339777128,1.92,16.104,16.09,26.11]
[1673339777551,20.0,16.107,16.09,43.83691046]
[1673339777762,20.0,16.107,16.091,38.92]
[1673339778823,1.92,16.106,16.091,38.92]
[1673339779562,1.92,16.106,16.091,20.0]
[1673339780301,0.96,16.106,16.091,37.72691046]
[1673339780614,0.96,16.106,16.091,39.66991046]
[1673339780828,0.96,16.105,16.092,1.92]
[1673339781016,0.96,16.105,16.093,20.0]
[1673339782607,66.57,16.109,16.093,20.0]
[1673339782823,161.2155,16.11,16.094,1.92]
[1673339783014,114.6455,16.11,16.094,3.782]
[1673339783347,20.0,16.109,16.095,17.72691046]
[1673339783559,20.0,16.109,16.096,21.92]
[1673339783959,20.0,16.112,16.097,17.0]
[1673339784172,20.0,16.112,16.098,1.92]
[1673339784502,20.0,16.112,16.098,21.92]
[1673339784715,20.0,16.112,16.099,17.0]
[1673339785034,20.0,16.112,16.1,1.92]
[1673339785342,20.0,16.112,16.099,17.0]
[1673339785951,20.0,16.112,16.1,1.92]
[1673339788077,46.52,16.126,16.101,20.14991046]
[1673339788306,20.0,16.125,16.103,20.0]
[1673339788606,131.62,16.12,16.102,17.72691046]
[1673339788803,20.0,16.118,16.097,20.0]
[1673339789013,46.55,16.117,16.097,20.0]
[1673339789220,20.0,16.116,16.097,20.0]
[1673339789440,66.56,16.115,16.097,20.0]
[1673339789646,20.96,16.114,16.097,20.0]
[1673339789869,64.52,16.113,16.097,20.0]
[1673339790060,20.96,16.112,16.097,20.0]
[1673339790271,64.53,16.111,16.097,20.0]
[1673339790481,0.96,16.11,16.097,20.0]
[1673339790690,0.96,16.109,16.097,20.0]
[1673339790914,0.96,16.108,16.097,20.0]
[1673339791132,20.0,16.11,16.097,20.0]
[1673339791336,20.0,16.111,16.098,1.92]
[1673339791550,20.0,16.113,16.098,1.92]
[1673339791862,20.0,16.112,16.098,1.92]
[1673339793864,1.92,16.111,16.098,1.92]
[1673339794054,1.92,16.111,16.098,0.96]
[1673339794266,1.92,16.111,16.097,20.0]
[1673339795012,150.58061681,16.11,16.091,46.00194991]
[1673339795208,150.58061681,16.11,16.087,20.0]
[1673339795209,26.28,16.1,16.087,20.0]
[1673339795416,46.6,16.099,16.087,20.0]
[1673339795640,26.28,16.1,16.087,37.72691046]
[1673339795852,46.59,16.105,16.087,37.72691046]
[1673339796056,38.92,16.104,16.087,37.72691046]
[1673339796274,66.59,16.103,16.087,37.72691046]
[1673339796471,20.0,16.101,16.087,37.72691046]
[1673339796685,20.0,16.1,16.087,37.72691046]
[1673339797957,20.0,16.1,16.088,17.0]
[1673339798292,0.96,16.099,16.086,116.7775]
[1673339798500,18.92,16.099,16.086,116.7775]
[1673339798816,20.0,16.098,16.086,116.7775]
[1673339799016,1.92,16.097,16.086,116.7775]
[1673339800483,1.92,16.097,16.079,20.0]
[1673339800698,46.61,16.098,16.081,20.0]
[1673339800915,46.6,16.099,16.081,22.123]
[1673339801113,20.0,16.098,16.083,20.0]
[1673339801760,20.0,16.098,16.081,22.123]
[1673339802085,20.0,16.096,16.081,20.0]
[1673339802265,48.53,16.095,16.081,20.0]
[1673339802477,1.92,16.095,16.081,20.0]
[1673339803119,18.92,16.095,16.081,20.0]
[1673339803846,65.53,16.095,16.08,137.5233]
[1673339804055,20.0,16.094,16.08,137.5233]
[1673339804377,18.92,16.093,16.08,137.5233]
[1673339805840,1.92,16.093,16.08,137.5233]
[1673339806056,18.92,16.093,16.08,137.5233]
[1673339806262,26.28,16.09,16.075,2.212]
[1673339806475,63.63,16.089,16.074,225.9527]
[1673339806696,21.92,16.088,16.074,225.9527]
[1673339807017,21.92,16.088,16.074,115.5892]
[1673339807942,21.92,16.088,16.075,20.0]
[1673339808591,21.92,16.088,16.076,17.0]
[1673339808788,20.0,16.091,16.077,1.92]
[1673339808997,20.0,16.09,16.077,19.64691046]
[1673339809211,20.0,16.09,16.078,17.0]
[1673339809848,20.0,16.09,16.078,34.72691046]
[1673339810908,21.92,16.089,16.075,20.0]
[1673339812276,21.92,16.089,16.076,17.0]
[1673339813428,1.92,16.089,16.076,17.0]
[1673339813628,1.92,16.089,16.076,34.72691046]
[1673339813840,1.92,16.089,16.077,20.0]
[1673339814375,1.92,16.089,16.078,17.0]
[1673339814573,20.0,16.091,16.078,17.0]
[1673339814784,1.92,16.09,16.079,20.0]
[1673339815739,20.0,16.091,16.08,17.0]
[1673339816267,40.0,16.091,16.08,17.0]
[1673339816477,20.0,16.091,16.08,17.0]
[1673339816707,40.0,16.091,16.08,17.0]
[1673339817211,20.0,16.091,16.08,17.0]
[1673339817633,40.0,16.091,16.08,17.0]
[1673339819511,20.0,16.091,16.08,17.0]
[1673339820886,40.0,16.091,16.08,17.0]
[1673339821100,40.0,16.091,16.078,17.72691046]
[1673339821101,40.0,16.091,16.075,2.278]
[1673339821418,20.0,16.089,16.075,20.0]
[1673339821605,18.92,16.088,16.075,20.0]
[1673339822353,20.0,16.087,16.075,20.0]
[1673339822551,18.92,16.086,16.075,20.0]
[1673339822756,1.92,16.086,16.075,20.0]
[1673339826453,1.92,16.086,16.073,5.6191536]
[1673339829291,46.64,16.085,16.073,5.6191536]
[1673339829505,38.92,16.084,16.073,5.6191536]
[1673339829720,37.0,16.084,16.073,5.6191536]
[1673339829924,1.92,16.083,16.073,5.6191536]
[1673339831061,26.07,16.08,16.073,5.6191536]
[1673339831275,48.58,16.079,16.073,5.6191536]
[1673339831599,48.58,16.079,16.063,114.9051]
[1673339831600,17.0,16.078,16.063,114.9051]
[1673339831792,48.59,16.077,16.063,114.9051]
[1673339832007,68.59,16.077,16.063,114.9051]
[1673339832647,20.0,16.075,16.063,114.9051]
[1673339832859,1.92,16.074,16.063,114.9051]
[1673339833074,1.92,16.074,16.057,22.391]
[1673339833287,20.0,16.075,16.058,114.9988]
[1673339833715,20.0,16.075,16.059,22.592]
[1673339834343,20.0,16.075,16.06,0.96]
[1673339834542,0.96,16.074,16.059,20.0]
[1673339834872,20.0,16.075,16.059,20.0]
[1673339835080,1.92,16.074,16.06,20.0]
[1673339835270,20.0,16.075,16.06,20.0]
[1673339836107,1.92,16.074,16.06,20.0]
[1673339836750,20.0,16.075,16.06,20.0]
[1673339837375,20.0,16.075,16.061,18.92]
[1673339838014,20.0,16.075,16.061,17.0]
[1673339838232,20.0,16.075,16.06,20.0]
[1673339839393,20.0,16.075,16.061,17.0]
[1673339839695,20.0,16.076,16.062,21.92]
[1673339839911,72.73,16.08,16.063,17.0]
[1673339840117,46.65,16.081,16.064,21.92]
[1673339840331,46.65,16.081,16.065,17.0]
[1673339840524,20.0,16.08,16.066,1.92]
[1673339840734,20.0,16.08,16.066,21.92]
[1673339840944,20.0,16.08,16.067,17.0]
[1673339841155,20.0,16.08,16.068,1.92]
[1673339841381,18.92,16.079,16.065,2.493]
[1673339841596,20.0,16.078,16.064,34.6158937]
[1673339841802,48.59,16.077,16.061,110.3253]
[1673339842017,20.0,16.076,16.062,20.0]
[1673339842205,20.0,16.076,16.061,110.3253]
[1673339842418,1.92,16.075,16.06,20.0]
[1673339842744,1.92,16.075,16.059,20.0]
[1673339842988,18.92,16.075,16.06,20.0]
[1673339843486,20.0,16.074,16.06,20.0]
[1673339843679,1.92,16.073,16.06,20.0]
[1673339844848,20.0,16.076,16.061,1.92]
[1673339845068,1.92,16.075,16.061,21.92]
[1673339845264,20.0,16.076,16.061,21.92]
[1673339845674,66.66,16.079,16.061,21.92]
[1673339845885,46.24,16.09,16.062,20.36991046]
[1673339846102,137.5259,16.089,16.063,41.92]
[1673339846419,137.5259,16.089,16.064,20.36991046]
[1673339846624,20.0,16.087,16.066,20.0]
[1673339846849,20.0,16.087,16.067,24.282]
[1673339847065,20.0,16.087,16.068,20.0]
[1673339847266,20.0,16.087,16.071,20.0]
[1673339847600,20.0,16.087,16.072,0.96]
[1673339847999,20.0,16.087,16.072,17.72691046]
[1673339848215,20.0,16.087,16.073,17.72691046]
[1673339849363,1.92,16.086,16.073,17.72691046]
[1673339851265,20.0,16.087,16.073,17.72691046]
[1673339851495,184.1559,16.089,16.074,21.92]
[1673339851687,137.5259,16.089,16.074,21.92]
[1673339851905,137.5259,16.089,16.075,17.72691046]
[1673339852210,137.5259,16.089,16.076,17.0]
[1673339852619,1.92,16.088,16.077,17.72691046]
[1673339852852,66.63,16.091,16.078,17.0]
[1673339853043,20.0,16.091,16.078,17.0]
[1673339853253,20.0,16.09,16.079,17.72691046]
[1673339855996,20.0,16.094,16.08,2.266]
[1673339856205,20.0,16.096,16.08,48.596]
[1673339856413,72.77,16.1,16.082,20.0]
[1673339856414,92.77,16.1,16.082,20.0]
[1673339856632,92.77,16.1,16.075,20.0]
[1673339856942,26.33,16.09,16.081,38.95515799]
[1673339857156,66.63,16.089,16.081,38.95515799]
[1673339857373,66.63,16.089,16.064,20.0]
[1673339857564,26.3,16.08,16.06,26.17]
[1673339857774,47.62,16.079,16.061,135.5423]
[1673339858023,48.58,16.079,16.061,135.5423]
[1673339858240,1.92,16.079,16.061,135.5423]
[1673339858426,21.92,16.079,16.066,20.0]
[1673339858637,38.92,16.079,16.061,135.5423]
[1673339858848,85.58,16.079,16.061,135.5423]
[1673339859398,20.0,16.078,16.061,135.5423]
[1673339859592,1.92,16.077,16.062,20.0]
[1673339860441,66.66,16.079,16.062,20.0]
[1673339860668,0.96,16.078,16.062,20.0]
[1673339861393,0.96,16.077,16.063,1.92]
[1673339861605,19.96061681,16.077,16.063,1.92]
[1673339861808,0.96,16.076,16.063,1.92]
[1673339862526,0.96,16.077,16.063,1.92]
[1673339863913,47.63,16.076,16.059,2.6]
[1673339864105,46.67,16.077,16.059,2.6]
[1673339864530,182.6108,16.078,16.059,2.6]
[1673339865162,182.6108,16.078,16.06,20.0]
[1673339865369,66.66,16.078,16.061,21.92]
[1673339865584,66.66,16.078,16.062,20.0]
[1673339865795,20.0,16.078,16.063,1.92]
[1673339866848,0.96,16.077,16.063,1.92]
[1673339867274,66.66,16.079,16.063,1.92]
[1673339867475,20.0,16.079,16.064,13.45005442]
[1673339867688,20.0,16.081,16.065,1.92]
[1673339868013,20.0,16.081,16.065,15.37005442]
[1673339869256,20.96,16.08,16.065,1.92]
[1673339869467,20.0,16.079,16.065,1.92]
[1673339871695,21.92,16.08,16.065,1.92]
[1673339871905,0.96,16.08,16.065,1.92]
[1673339872216,0.96,16.08,16.065,1.42]
[1673339872428,0.96,16.08,16.066,0.96]
[1673339872641,20.96,16.08,16.064,0.96]
[1673339872952,20.0,16.079,16.064,0.96]
[1673339873484,20.0,16.079,16.064,20.96]
[1673339874318,20.0,16.079,16.065,17.96]
[1673339874718,46.66,16.081,16.066,20.96]
[1673339874949,110.1717,16.083,16.067,44.55]
[1673339875156,110.1717,16.083,16.068,20.96]
[1673339875372,110.1717,16.083,16.069,20.96]
[1673339875689,46.64,16.086,16.07,20.96]
[1673339875995,395.0,16.099,16.07,20.96]
[1673339875996,46.61,16.096,16.071,0.96]
[1673339876189,46.61,16.096,16.073,20.0]
[1673339876190,20.0,16.095,16.073,20.0]
[1673339876400,20.0,16.095,16.074,135.6148]
[1673339876401,46.62,16.094,16.074,135.6148]
[1673339876608,46.62,16.094,16.075,20.0]
[1673339876822,46.62,16.094,16.076,18.92]
[1673339877044,46.62,16.094,16.078,20.0]
[1673339877343,46.62,16.094,16.079,21.92]
[1673339877552,46.62,16.094,16.079,35.37005442]
[1673339877785,1.92,16.093,16.079,35.37005442]
[1673339878000,46.62,16.092,16.08,17.0]
[1673339878206,1.92,16.091,16.081,20.0]
[1673339878415,46.62,16.092,16.081,20.0]
[1673339878610,20.0,16.094,16.081,20.0]
[1673339878940,46.62,16.093,16.082,17.0]
[1673339879154,46.61,16.095,16.082,17.0]
[1673339879675,20.0,16.094,16.082,17.0]
[1673339879887,46.62,16.093,16.082,17.0]
[1673339880282,0.96,16.092,16.082,17.0]
[1673339880621,20.0,16.094,16.082,17.0]
[1673339880933,46.62,16.093,16.081,20.0]
[1673339881356,20.0,16.092,16.081,20.0]
[1673339881760,1.92,16.091,16.08,20.0]
[1673339883665,1.92,16.091,16.079,20.0]
[1673339883876,46.62,16.093,16.079,20.0]
[1673339884192,46.61,16.095,16.08,33.45005442]
[1673339884404,46.6,16.099,16.082,20.0]
[1673339884801,46.6,16.099,16.083,13.45005442]
[1673339885457,46.6,16.099,16.084,1.92]
[1673339885854,46.6,16.099,16.085,13.45005442]
[1673339886070,66.6,16.099,16.086,18.92]
[1673339886280,66.6,16.099,16.086,17.0]
[1673339886505,20.0,16.098,16.086,17.0]
[1673339887224,20.0,16.099,16.086,30.45005442]
[1673339889020,20.0,16.095,16.084,0.96]
[1673339889219,1.92,16.094,16.08,110.2801]
[1673339889427,0.96,16.094,16.081,20.0]
[1673339889637,0.96,16.093,16.081,20.0]
[1673339889850,0.96,16.092,16.081,20.0]
[1673339890599,26.1,16.09,16.074,113.6948]
[1673339890795,66.63,16.089,16.075,20.0]
[1673339891128,20.96,16.088,16.075,20.0]
[1673339891332,47.6,16.087,16.075,20.0]
[1673339891547,0.96,16.086,16.075,20.0]
[1673339891770,0.96,16.085,16.073,20.0]
[1673339892476,46.64,16.087,16.073,33.45005442]
[1673339892684,0.96,16.086,16.073,33.45005442]
[1673339893106,0.96,16.086,16.073,20.0]
[1673339893424,0.96,16.086,16.074,0.96]
[1673339893637,0.96,16.085,16.073,20.0]
[1673339894699,0.96,16.086,16.073,20.0]
[1673339895011,0.96,16.086,16.074,1.92]
[1673339895217,21.92,16.087,16.074,17.96]
[1673339895429,21.92,16.087,16.074,17.0]
[1673339896787,46.64,16.086,16.074,17.0]
[1673339896999,1.92,16.085,16.074,17.0]
[1673339898167,1.92,16.085,16.075,20.0]
[1673339898396,46.63,16.088,16.076,17.0]
[1673339898582,160.445,16.089,16.076,17.0]